bitfinex/quotes_BTCUSD_20250205
["timestamp","ask_amount","ask_price","bid_price","bid_amount"]
[1738728284502,0.0497,98107.0,98106.0,0.56176666]
[1738728285298,0.081,98110.0,98109.0,0.122312]
[1738728285498,0.081,98110.0,98109.0,0.2072507]
[1738728285694,0.081,98110.0,98109.0,0.21451808]
[1738728286261,0.1279,98116.0,98113.0,0.122307]
[1738728286460,0.0001069,98117.0,98116.0,0.272304]
[1738728286668,0.0001069,98117.0,98116.0,0.70448906]
[1738728287005,0.0001069,98117.0,98116.0,0.71174573]
[1738728288021,0.0001069,98117.0,98116.0,0.74290582]
[1738728288225,0.0001069,98117.0,98116.0,0.74390582]
[1738728288475,0.0001069,98117.0,98116.0,0.83481774]
[1738728288635,0.0001069,98117.0,98116.0,0.80365765]
[1738728289082,0.0001069,98117.0,98116.0,0.83481348]
[1738728289439,0.0001069,98117.0,98116.0,0.80365765]
[1738728290643,0.0001069,98117.0,98116.0,0.80265765]
[1738728290852,0.0001069,98117.0,98116.0,0.80365765]
[1738728291259,0.0001069,98117.0,98116.0,1.14995765]
[1738728291612,0.0001069,98117.0,98116.0,1.15095765]
[1738728291768,0.0001069,98117.0,98116.0,1.14995765]
[1738728292187,0.0001069,98117.0,98116.0,1.15095765]
[1738728292400,0.0001069,98117.0,98116.0,1.14995765]
[1738728294413,0.0001069,98117.0,98116.0,1.15095765]
[1738728294621,0.0001069,98117.0,98116.0,1.14995765]
[1738728294956,0.0001069,98117.0,98116.0,1.15095765]
[1738728295349,2.562e-05,98118.0,98116.0,1.02865365]
[1738728295555,2.562e-05,98118.0,98117.0,0.41983083]
[1738728295751,2.562e-05,98118.0,98117.0,0.42585023]
[1738728297167,2.562e-05,98118.0,98117.0,1.10295023]
[1738728298727,2.562e-05,98118.0,98117.0,1.10395023]
[1738728298927,2.562e-05,98118.0,98117.0,1.10295023]
[1738728299327,2.562e-05,98118.0,98117.0,1.10395023]
[1738728303131,2.562e-05,98118.0,98117.0,0.75565023]
[1738728304535,2.562e-05,98118.0,98117.0,0.75665023]
[1738728304753,2.562e-05,98118.0,98117.0,0.75565023]
[1738728304951,2.562e-05,98118.0,98117.0,0.75665023]
[1738728309089,2.562e-05,98118.0,98117.0,1.10395023]
[1738728310046,2.562e-05,98118.0,98117.0,1.25285023]
[1738728310237,2.562e-05,98118.0,98117.0,1.29404331]
[1738728310468,2.562e-05,98118.0,98117.0,1.30404331]
[1738728310652,0.00022428,98137.0,98136.0,0.272279]
[1738728310852,0.00022428,98137.0,98136.0,1.19468854]
[1738728311101,0.00022428,98137.0,98136.0,1.20191292]
[1738728311455,2.8e-07,98137.0,98136.0,1.20191292]
[1738728312575,2.8e-07,98137.0,98136.0,1.17071984]
[1738728312777,2.8e-07,98137.0,98136.0,1.17171984]
[1738728313176,2.8e-07,98137.0,98136.0,1.17071984]
[1738728314519,2.8e-07,98137.0,98136.0,1.17171984]
[1738728314681,8e-08,98139.0,98138.0,0.145276]
[1738728314883,8e-08,98139.0,98138.0,0.57891814]
[1738728315226,8e-08,98139.0,98138.0,0.58490171]
[1738728316025,8e-08,98139.0,98138.0,0.57490171]
[1738728316294,8e-08,98139.0,98138.0,0.57590171]
[1738728317746,8e-08,98139.0,98138.0,0.58590171]
[1738728317966,8e-08,98139.0,98138.0,1.25300171]
[1738728318145,8e-08,98139.0,98138.0,1.24300171]
[1738728318513,8e-08,98139.0,98138.0,1.21188859]
[1738728318845,8e-08,98139.0,98138.0,1.18888859]
[1738728319045,8e-08,98139.0,98138.0,1.11258859]
[1738728319269,0.06600008,98160.0,98159.0,0.12225]
[1738728319467,0.06600008,98160.0,98159.0,0.26946096]
[1738728319670,0.06600008,98160.0,98159.0,0.27665207]
[1738728321663,0.06600008,98160.0,98159.0,0.27765207]
[1738728322901,0.0469,98162.0,98159.0,0.27765207]
[1738728322902,0.0469,98162.0,98159.0,0.42765207]
[1738728323138,0.0827,98167.0,98166.0,0.122241]
[1738728323294,0.0827,98167.0,98166.0,0.22462606]
[1738728323489,0.0827,98167.0,98166.0,0.23181851]
[1738728325020,0.0827,98167.0,98166.0,0.23281851]
[1738728325215,0.0827,98167.0,98166.0,0.27892004]
[1738728326824,0.0827,98167.0,98166.0,0.60872004]
[1738728327177,0.0827,98167.0,98166.0,0.33799245]
[1738728327381,0.1293,98167.0,98166.0,0.33799245]
[1738728328185,0.1293,98167.0,98166.0,0.33699245]
[1738728328669,0.1293,98167.0,98166.0,0.33799245]
[1738728328907,0.1293,98167.0,98166.0,0.33699245]
[1738728329312,0.1293,98167.0,98166.0,0.33799245]
[1738728329935,0.1293,98167.0,98166.0,0.38401629]
[1738728331500,0.1293,98167.0,98166.0,0.33799245]
[1738728332400,0.25154,98167.0,98166.0,0.33799245]
[1738728332622,0.25154,98167.0,98166.0,0.3308]
[1738728332623,0.1293,98167.0,98166.0,0.3308]
[1738728332803,0.1293,98167.0,98166.0,0.00948297]
[1738728333129,0.20946064,98167.0,98166.0,0.001]
[1738728333322,0.14830064,98167.0,98166.0,0.001]
[1738728333913,0.14830064,98167.0,98166.0,0.00948297]
[1738728334116,0.14830064,98167.0,98166.0,0.001]
[1738728334339,0.14830064,98167.0,98166.0,0.00948297]
[1738728334534,0.14830064,98167.0,98166.0,0.001]
[1738728334916,0.14830064,98167.0,98166.0,0.00948297]
[1738728335112,0.14830064,98167.0,98166.0,0.001]
[1738728335338,0.14830064,98167.0,98166.0,0.00948297]
[1738728335554,0.14830064,98167.0,98166.0,0.001]
[1738728335736,0.14830064,98167.0,98166.0,0.00948297]
[1738728335936,0.14830064,98167.0,98166.0,0.001]
[1738728336137,0.14830064,98167.0,98166.0,0.00948297]
[1738728336340,0.14830064,98167.0,98166.0,0.001]
[1738728336543,0.14830064,98167.0,98166.0,0.00948297]
[1738728336714,0.14830064,98167.0,98166.0,0.001]
[1738728337112,0.14830064,98167.0,98166.0,0.00948297]
[1738728337340,0.14830064,98167.0,98166.0,0.001]
[1738728337556,0.14840744,98167.0,98166.0,0.001]
[1738728337953,0.14840744,98167.0,98166.0,0.00948297]
[1738728338119,0.14840744,98167.0,98166.0,0.001]
[1738728338617,0.14840744,98167.0,98166.0,0.00948297]
[1738728339294,0.14840744,98167.0,98166.0,0.13172397]
[1738728339699,0.01910744,98167.0,98166.0,0.38410903]
[1738728339897,0.0001068,98167.0,98166.0,0.38410903]
[1738728340923,0.0828068,98167.0,98166.0,0.00848297]
[1738728341124,0.0828068,98167.0,98166.0,0.13072397]
[1738728341339,0.0828068,98167.0,98166.0,0.123241]
[1738728341530,0.0828068,98167.0,98166.0,0.1317257]
[1738728341691,0.0828068,98167.0,98166.0,0.0094847]
[1738728341893,0.0828068,98167.0,98166.0,0.1317257]
[1738728342099,0.0828068,98167.0,98166.0,0.1307257]
[1738728342321,0.0828068,98167.0,98166.0,0.1317257]
[1738728343051,0.1439668,98167.0,98166.0,0.1317257]
[1738728343233,0.10185755,98167.0,98166.0,0.1317257]
[1738728344335,0.0828068,98167.0,98166.0,0.1317257]
[1738728346157,0.0828068,98167.0,98166.0,0.0094847]
[1738728346611,0.10186378,98167.0,98166.0,0.0094847]
[1738728346799,0.10186378,98167.0,98166.0,0.001]
[1738728347129,0.10186378,98167.0,98166.0,0.00948511]
[1738728347425,0.10186378,98167.0,98166.0,0.001]
[1738728347826,0.10186378,98167.0,98166.0,0.00948511]
[1738728348031,0.10186378,98167.0,98166.0,0.001]
[1738728348032,0.15116378,98167.0,98166.0,0.001]
[1738728348332,0.18166067,98167.0,98166.0,0.001]
[1738728349296,0.18166067,98167.0,98166.0,0.0094847]
[1738728352805,0.18166067,98167.0,98166.0,0.001]
[1738728352922,0.18166067,98167.0,98166.0,0.0094856]
[1738728353120,0.18166067,98167.0,98166.0,0.001]
[1738728353344,0.18166067,98167.0,98166.0,0.0094856]
[1738728353581,0.18166067,98167.0,98166.0,0.001]
[1738728353755,0.19196878,98167.0,98166.0,0.0094856]
[1738728354302,0.31420878,98167.0,98166.0,0.0094856]
[1738728354450,0.31420878,98167.0,98166.0,0.001]
[1738728355438,0.39452416,98167.0,98166.0,0.001]
[1738728355637,0.39452416,98167.0,98160.0,0.00022428]
[1738728355835,0.1304,98161.0,98160.0,0.00022428]
[1738728356430,0.17995387,98161.0,98160.0,0.00022428]
[1738728358823,0.30220187,98161.0,98160.0,0.00022428]
[1738728359144,0.17995387,98161.0,98160.0,0.00022428]
[1738728359490,0.30220187,98161.0,98160.0,0.00022428]
[1738728359692,0.17995387,98161.0,98160.0,0.00022428]
[1738728359934,0.30220187,98161.0,98160.0,0.00022428]
[1738728360195,0.17995387,98161.0,98160.0,0.00022428]
[1738728361415,0.30220187,98161.0,98160.0,0.00022428]
[1738728361648,0.36502336,98161.0,98160.0,0.00022428]
[1738728361858,0.42618336,98161.0,98160.0,0.00022428]
[1738728362241,0.36336187,98161.0,98160.0,0.00022428]
[1738728362672,0.46574693,98161.0,98160.0,0.00022428]
[1738728362878,0.46674693,98161.0,98160.0,0.00022428]
[1738728363278,0.46974693,98161.0,98160.0,0.00022428]
[1738728364518,0.46874693,98161.0,98160.0,0.00022428]
[1738728364703,0.57340603,98161.0,98160.0,0.00022428]
[1738728365105,0.59340603,98161.0,98160.0,0.00022428]
[1738728365397,0.58940603,98161.0,98160.0,0.00022428]
[1738728365559,0.59840603,98161.0,98160.0,0.00122428]
[1738728365772,0.59340603,98161.0,98160.0,0.00022428]
[1738728365972,0.60240603,98161.0,98160.0,0.00122428]
[1738728366745,0.85970603,98161.0,98160.0,2.8e-07]
[1738728366935,0.85970603,98161.0,98138.0,0.00022428]
[1738728366936,0.18343,98143.0,98138.0,0.00022428]
[1738728367215,0.46236206,98143.0,98138.0,0.00022428]
[1738728367498,0.122275,98139.0,98138.0,0.00022428]
[1738728367636,0.41162006,98139.0,98138.0,0.00022428]
[1738728367833,0.42162006,98139.0,98138.0,0.00022428]
[1738728368032,0.36046006,98139.0,98138.0,0.00022428]
[1738728368284,0.50023165,98139.0,98138.0,0.00022428]
[1738728368907,0.58839165,98139.0,98138.0,0.00022428]
[1738728369107,0.73839165,98139.0,98138.0,0.00022428]
[1738728369338,0.74739165,98139.0,98138.0,0.00122428]
[1738728369545,0.73839165,98139.0,98138.0,0.00022428]
[1738728369742,0.74839165,98139.0,98138.0,0.00022428]
[1738728369974,0.75439165,98139.0,98138.0,0.00122428]
[1738728370096,0.74839165,98139.0,98138.0,0.00022428]
[1738728370506,0.74439165,98139.0,98138.0,0.00022428]
[1738728371007,0.74639165,98139.0,98138.0,0.00022428]
[1738728371391,0.75191165,98139.0,98138.0,0.00022428]
[1738728371595,0.75191165,98139.0,98138.0,0.00122428]
[1738728371813,0.76491165,98139.0,98138.0,0.00122428]
[1738728372806,0.251201,98118.0,98104.0,0.00022428]
[1738728372973,0.39501186,98118.0,98104.0,0.00022428]
[1738728373172,0.39501186,98118.0,98117.0,0.00877922]
[1738728373504,0.42801186,98118.0,98117.0,0.00022428]
[1738728373705,0.57801186,98118.0,98117.0,0.00022428]
[1738728373882,0.63917186,98118.0,98117.0,0.00022428]
[1738728374248,0.68859464,98118.0,98117.0,0.00022428]
[1738728374444,0.69859464,98118.0,98117.0,0.00022428]
[1738728374647,0.71075922,98118.0,98117.0,0.00022428]
[1738728374848,0.71775922,98118.0,98117.0,0.00022428]
[1738728374985,0.74429934,98118.0,98117.0,0.00022428]
[1738728375186,0.73729934,98118.0,98117.0,0.00022428]
[1738728375391,0.73729934,98118.0,98104.0,0.00022428]
[1738728375392,0.490876,98106.0,98104.0,0.00022428]
[1738728375702,0.62180118,98106.0,98104.0,0.00022428]
[1738728376469,0.68396406,98106.0,98104.0,0.00022428]
[1738728376959,0.69396406,98106.0,98104.0,0.00022428]
[1738728377680,0.68122396,98106.0,98104.0,0.00022428]
[1738728377840,0.74906013,98106.0,98104.0,0.00022428]
[1738728378434,0.75806013,98106.0,98104.0,0.00022428]
[1738728378681,0.74906013,98106.0,98104.0,0.00022428]
[1738728379037,0.75806013,98106.0,98104.0,0.00022428]
[1738728379765,0.75406013,98106.0,98104.0,0.00022428]
[1738728379967,0.75406013,98106.0,98084.0,0.00072458]
[1738728379968,0.06116,98085.0,98084.0,0.00072458]
[1738728380132,0.27274506,98085.0,98084.0,0.00072458]
[1738728381351,0.30128518,98085.0,98084.0,0.00072458]
[1738728381557,0.32229394,98085.0,98084.0,0.00072458]
[1738728382569,0.32829394,98085.0,98084.0,0.00072458]
[1738728382793,0.25875382,98085.0,98084.0,0.00072458]
[1738728383028,0.26675382,98085.0,98084.0,0.00072458]
[1738728383479,0.26075382,98085.0,98084.0,0.00072458]
[1738728383688,0.34940037,98085.0,98084.0,0.00072458]
[1738728383899,0.35140037,98085.0,98084.0,0.00072458]
[1738728384100,0.45389509,98085.0,98084.0,0.00072458]
[1738728384725,0.46189509,98085.0,98084.0,0.00072458]
[1738728385171,0.45389509,98085.0,98084.0,0.00072458]
[1738728385298,0.46089509,98085.0,98084.0,0.00072458]
[1738728385515,0.49130911,98085.0,98084.0,0.00072458]
[1738728385857,0.49230543,98085.0,98084.0,0.00072458]
[1738728386045,0.50030543,98085.0,98084.0,0.00072458]
[1738728386249,0.50230543,98085.0,98084.0,0.00072458]
[1738728386658,0.50030543,98085.0,98084.0,0.00072458]
[1738728387071,0.50230543,98085.0,98084.0,0.00072458]
[1738728387476,0.40965888,98085.0,98084.0,0.00072458]
[1738728387722,0.53200088,98085.0,98084.0,0.00072458]
[1738728387891,0.52600088,98085.0,98084.0,0.00072458]
[1738728388093,0.53300088,98085.0,98084.0,0.00072458]
[1738728388552,0.52600088,98085.0,98084.0,0.00072458]
[1738728388735,0.53400088,98085.0,98084.0,0.00072458]
[1738728389096,0.52600088,98085.0,98084.0,0.00072458]
[1738728389296,0.53300088,98085.0,98084.0,0.00072458]
[1738728389626,0.52400088,98085.0,98084.0,0.00072458]
[1738728390018,0.52600088,98085.0,98084.0,0.00072458]
[1738728390534,0.52400088,98085.0,98084.0,0.00072458]
[1738728390764,0.52600088,98085.0,98084.0,0.00072458]
[1738728391086,0.52400088,98085.0,98084.0,0.00072458]
[1738728391437,0.52600088,98085.0,98084.0,0.00072458]
[1738728391597,0.53400088,98085.0,98084.0,0.00072458]
[1738728392130,0.52600088,98085.0,98084.0,0.00072458]
[1738728392332,0.53300088,98085.0,98084.0,0.00072458]
[1738728392693,0.52400088,98085.0,98084.0,0.00072458]
[1738728393095,0.53400088,98085.0,98084.0,0.00072458]
[1738728393300,0.50933421,98085.0,98084.0,0.00072458]
[1738728393504,0.40483949,98085.0,98084.0,0.00072458]
[1738728393811,0.0684191,98085.0,98084.0,0.00072458]
[1738728394014,0.0614191,98085.0,98084.0,0.00072458]
[1738728394339,0.0614191,98085.0,98084.0,0.00932736]
[1738728394545,0.0594191,98085.0,98084.0,0.00072458]
[1738728395075,0.0614191,98085.0,98084.0,0.00932736]
[1738728395282,0.0694191,98085.0,98084.0,0.00932736]
[1738728395518,0.0694191,98085.0,98084.0,0.12306858]
[1738728395829,0.0614191,98085.0,98084.0,0.00932736]
[1738728396032,0.0624191,98085.0,98084.0,0.00932736]
[1738728396261,0.0594191,98085.0,98084.0,0.00932736]
[1738728398413,0.02900508,98085.0,98084.0,0.13167136]
[1738728399000,0.01900876,98085.0,98084.0,0.13167136]
[1738728399460,0.01900876,98085.0,98084.0,0.20867136]
[1738728399634,0.02000876,98085.0,98084.0,0.20867136]
[1738728402193,0.01900876,98085.0,98084.0,0.20867136]
[1738728403558,0.01010251,98096.0,98086.0,0.12234]
[1738728403754,0.01010251,98096.0,98084.0,0.00932736]
[1738728403908,0.122327,98098.0,98087.0,0.00858912]
[1738728404110,0.0615341,98098.0,98089.0,0.122337]
[1738728404614,0.0615341,98098.0,98090.0,0.00858926]
[1738728405156,0.0905192,98096.0,98084.0,0.00072458]
[1738728405358,0.0905192,98096.0,98091.0,0.00858867]
[1738728405516,0.14188693,98096.0,98088.0,0.122338]
[1738728405721,0.163108,98094.0,98092.0,0.0085874]
[1738728405916,0.0494,98093.0,98084.0,0.00072458]
[1738728406158,0.163113,98092.0,98084.0,0.00072458]
[1738728406362,0.16312,98088.0,98084.0,0.00072458]
[1738728406658,0.046802,98091.0,98084.0,0.00072458]
[1738728406868,0.169138,98091.0,98084.0,0.00072458]
[1738728407117,0.122336,98090.0,98084.0,0.00072458]
[1738728407913,0.0905192,98088.0,98084.0,0.00072458]
[1738728408317,0.22938424,98087.0,98084.0,0.00072458]
[1738728408592,0.197441,98086.0,98084.0,0.00072458]
[1738728408824,0.22472706,98085.0,98084.0,0.00072458]
[1738728409945,0.24377308,98085.0,98084.0,0.00072458]
[1738728410148,0.24877308,98085.0,98084.0,0.00072458]
[1738728410347,0.32853489,98085.0,98084.0,0.00072458]
[1738728410734,0.32953489,98085.0,98084.0,0.00072458]
[1738728411617,0.52863489,98085.0,98084.0,0.00072458]
[1738728411976,0.55163489,98085.0,98084.0,0.00072458]
[1738728412176,0.68769489,98085.0,98084.0,0.00072458]
[1738728412499,0.68969489,98085.0,98084.0,0.00072458]
[1738728412799,0.69469489,98085.0,98084.0,0.00072458]
[1738728413004,0.70269489,98085.0,98084.0,0.00072458]
[1738728413211,0.69769489,98085.0,98084.0,0.00072458]
[1738728413351,0.73017646,98085.0,98084.0,0.00072458]
[1738728413555,0.73717646,98085.0,98084.0,0.00072458]
[1738728413810,0.73517646,98085.0,98084.0,0.00072458]
[1738728413986,0.73817646,98085.0,98084.0,0.00072458]
[1738728414653,0.73117646,98085.0,98084.0,0.00072458]
[1738728415003,0.73917646,98085.0,98084.0,0.00072458]
[1738728415451,0.72817646,98085.0,98084.0,0.00072458]
[1738728415602,0.7401051,98085.0,98084.0,0.00072458]
[1738728415981,0.7371051,98085.0,98084.0,0.00072458]
[1738728416402,0.7311051,98085.0,98084.0,0.00072458]
[1738728416725,0.7401051,98085.0,98084.0,0.00072458]
[1738728416936,0.7371051,98085.0,98084.0,0.00072458]
[1738728417142,0.7401051,98085.0,98084.0,0.00072458]
[1738728417691,0.7301051,98085.0,98084.0,0.00072458]
[1738728418295,0.65034329,98085.0,98084.0,0.00072458]
[1738728419029,0.63834329,98085.0,98084.0,0.00072458]
[1738728419574,0.65034329,98085.0,98084.0,0.00072458]
[1738728419768,0.64134329,98085.0,98084.0,0.00072458]
[1738728419969,0.61686172,98085.0,98084.0,0.00072458]
[1738728420303,0.72187048,98085.0,98084.0,0.00072458]
[1738728421233,0.74187048,98085.0,98084.0,0.00072458]
[1738728421436,0.74035048,98085.0,98084.0,0.00072458]
[1738728421693,0.74935048,98085.0,98084.0,0.00072458]
[1738728421837,0.74635048,98085.0,98084.0,0.00072458]
[1738728422332,0.74635048,98085.0,98061.0,0.00022428]
[1738728422333,0.122371,98062.0,98061.0,0.00022428]
[1738728422597,0.22475606,98062.0,98061.0,0.00843925]
[1738728422841,0.22475606,98062.0,98061.0,0.00022428]
[1738728422974,0.27426352,98062.0,98061.0,0.00022428]
[1738728423177,0.40103608,98062.0,98061.0,0.00022428]
[1738728424869,0.40303608,98062.0,98061.0,0.00022428]
[1738728425272,0.40103608,98062.0,98061.0,0.00022428]
[1738728425532,0.40703608,98062.0,98061.0,0.00022428]
[1738728425733,0.40203608,98062.0,98061.0,0.00022428]
[1738728426001,0.40603608,98062.0,98061.0,0.00022428]
[1738728426235,0.40503608,98062.0,98061.0,0.00022428]
[1738728426478,0.40203608,98062.0,98061.0,0.00022428]
[1738728427988,0.40703608,98062.0,98061.0,0.00022428]
[1738728428188,0.40203608,98062.0,98061.0,0.00022428]
[1738728428371,0.40603608,98062.0,98061.0,0.00022428]
[1738728428782,0.05977232,98062.0,98061.0,0.00022428]
[1738728428981,0.06577232,98062.0,98061.0,0.00843925]
[1738728429204,0.18814332,98062.0,98061.0,0.00843925]
[1738728429404,0.06077232,98062.0,98061.0,0.00843925]
[1738728429563,0.06377232,98062.0,98061.0,0.00022428]
[1738728429801,0.18614332,98062.0,98061.0,0.00022428]
[1738728430515,0.24856642,98062.0,98061.0,0.00022428]
[1738728431549,0.24456642,98062.0,98061.0,0.00022428]
[1738728431995,0.05977232,98062.0,98061.0,0.00022428]
[1738728432535,0.06077232,98062.0,98061.0,0.00022428]
[1738728432735,0.06377232,98062.0,98061.0,0.00844154]
[1738728433066,0.02931088,98062.0,98061.0,0.00844154]
[1738728433646,0.02931088,98062.0,98061.0,0.00022428]
[1738728433647,0.01904602,98062.0,98061.0,0.00022428]
[1738728433869,0.01904602,98062.0,98061.0,0.13081354]
[1738728434078,0.01904602,98062.0,98061.0,0.12259628]
[1738728434281,0.01904602,98062.0,98061.0,0.13081354]
[1738728434836,0.01904602,98062.0,98061.0,0.28521159]
[1738728435288,0.01904602,98062.0,98061.0,0.25581354]
[1738728435627,0.09140671,98063.0,98062.0,0.122371]
[1738728436051,0.03046144,98074.0,98073.0,0.122357]
[1738728436266,0.09140671,98077.0,98076.0,0.122354]
[1738728436701,0.09140671,98077.0,98076.0,0.13055932]
[1738728437317,0.14095062,98077.0,98076.0,0.21385932]
[1738728437490,0.14095062,98077.0,98076.0,0.30804405]
[1738728437689,0.14095062,98077.0,98076.0,0.26235932]
[1738728438615,0.09140671,98077.0,98076.0,0.26235932]
[1738728439277,0.0001068,98085.0,98084.0,0.122344]
[1738728439690,0.0001068,98085.0,98084.0,0.20784183]
[1738728440938,0.01914846,98085.0,98084.0,0.20784183]
[1738728441591,0.02014846,98085.0,98084.0,0.20784183]
[1738728442033,0.0011068,98085.0,98084.0,0.20784183]
[1738728442436,0.0001068,98085.0,98084.0,0.20784183]
[1738728442672,0.0001068,98085.0,98084.0,0.13254183]
[1738728442871,0.0001068,98085.0,98084.0,0.13154183]
[1738728443135,0.0001068,98085.0,98084.0,0.01019783]
[1738728443539,0.0001068,98085.0,98084.0,0.13354183]
[1738728444357,0.01913061,98085.0,98084.0,0.13154183]
[1738728445385,0.01913061,98085.0,98084.0,0.13254183]
[1738728445725,0.01913061,98085.0,98084.0,0.00819783]
[1738728445873,0.01913061,98085.0,98084.0,0.13154183]
[1738728446075,0.0001068,98085.0,98084.0,0.002]
[1738728446272,0.0001068,98085.0,98084.0,0.01018604]
[1738728446469,0.0001068,98085.0,98084.0,0.124344]
[1738728446677,0.0001068,98085.0,98084.0,0.13253]
[1738728451295,0.0001068,98085.0,98084.0,0.010186]
[1738728451495,0.19164748,98085.0,98084.0,0.002]
[1738728451957,0.0001068,98085.0,98084.0,0.002]
[1738728452100,0.0001068,98085.0,98084.0,0.123344]
[1738728452355,0.01912002,98085.0,98084.0,0.1305304]
[1738728452713,0.02012002,98085.0,98084.0,0.1315304]
[1738728453335,0.02012002,98085.0,98084.0,0.25290954]
[1738728453464,0.0011068,98085.0,98084.0,0.25290954]
[1738728453872,0.0011068,98085.0,98084.0,0.25190954]
[1738728454217,0.0011068,98085.0,98084.0,0.3562946]
[1738728454424,0.0001068,98085.0,98084.0,0.3552946]
[1738728454581,0.0001068,98085.0,98084.0,0.3542946]
[1738728454785,0.0001068,98085.0,98084.0,0.3562946]
[1738728455122,0.0001068,98085.0,98084.0,0.3552946]
[1738728455327,0.0001068,98085.0,98084.0,0.3562946]
[1738728455855,0.0001068,98085.0,98084.0,0.31051546]
[1738728455992,0.0001068,98085.0,98084.0,0.46051546]
[1738728456209,0.0001068,98085.0,98084.0,0.45951546]
[1738728456907,0.0001068,98085.0,98084.0,0.50511546]
[1738728457724,0.0001068,98085.0,98084.0,0.50533974]
[1738728458066,0.0001068,98085.0,98084.0,0.58849981]
[1738728458439,0.0001068,98085.0,98084.0,0.58949981]
[1738728460528,0.0001068,98085.0,98084.0,1.26659981]
[1738728460757,0.0001068,98104.0,98093.0,0.15]
[1738728460960,0.0001068,98104.0,98103.0,0.39772]
[1738728461159,0.0001068,98104.0,98103.0,0.55993808]
[1738728462117,0.0001068,98104.0,98103.0,0.56193808]
[1738728462331,0.0001068,98104.0,98103.0,0.55993808]
[1738728462831,0.0001068,98104.0,98103.0,0.56193808]
[1738728463755,0.0001068,98104.0,98103.0,0.56293808]
[1738728466491,0.0001068,98104.0,98103.0,1.24003808]
[1738728469010,0.0001068,98104.0,98103.0,1.25026436]
[1738728476956,0.0001068,98104.0,98103.0,1.12486436]
[1738728479846,0.0001068,98104.0,98103.0,1.0731915]
[1738728480054,0.0001068,98104.0,98103.0,1.06296522]
[1738728480950,0.0001068,98104.0,98103.0,1.05996522]
[1738728481147,0.0001068,98104.0,98103.0,0.80858016]
[1738728481348,0.0001068,98104.0,98103.0,0.46328016]
[1738728481548,0.0001068,98104.0,98103.0,0.46228016]
[1738728481770,0.0493068,98104.0,98103.0,0.46228016]
[1738728482572,0.1295068,98104.0,98103.0,0.01016016]
[1738728482781,0.14852943,98104.0,98103.0,0.13048016]
[1738728482988,0.14852943,98104.0,98103.0,0.13348016]
[1738728483383,0.14852943,98104.0,98103.0,0.13248016]
[1738728483580,0.14852943,98104.0,98103.0,0.01016016]
[1738728483783,0.14852943,98104.0,98103.0,0.12532]
[1738728483967,0.14852943,98104.0,98103.0,0.13346517]
[1738728484163,0.14852943,98104.0,98103.0,0.13046517]
[1738728484344,0.14852943,98104.0,98103.0,0.13246517]
[1738728484555,0.14852943,98104.0,98103.0,0.13346517]
[1738728484753,0.14852943,98104.0,98103.0,0.13146517]
[1738728484951,0.14852943,98104.0,98103.0,0.13346517]
[1738728485612,0.14852943,98104.0,98103.0,0.17943149]
[1738728485812,0.06832943,98104.0,98103.0,0.13146517]
[1738728485962,0.06832943,98104.0,98103.0,0.13046517]
[1738728486163,0.06832943,98104.0,98103.0,0.13246517]
[1738728486404,0.06832943,98104.0,98103.0,0.17933149]
[1738728486803,0.06832943,98104.0,98103.0,0.17833149]
[1738728487000,0.0493068,98104.0,98103.0,0.17933149]
[1738728487513,0.0493068,98104.0,98103.0,0.17633149]
[1738728487760,0.0493068,98104.0,98103.0,0.13246517]
[1738728487935,0.0493068,98104.0,98103.0,0.13346517]
[1738728488079,0.0493068,98104.0,98103.0,0.13146517]
[1738728488283,0.0493068,98104.0,98103.0,0.13346517]
[1738728489742,0.06834982,98104.0,98103.0,0.13346517]
[1738728490731,0.01914982,98104.0,98103.0,0.43181655]
[1738728491088,0.01914982,98104.0,98103.0,0.76161655]
[1738728491237,0.0001068,98104.0,98103.0,0.76161655]
[1738728493561,0.0001068,98104.0,98103.0,0.71565023]
[1738728494795,0.0001068,98104.0,98103.0,0.56565023]
[1738728497760,0.0001068,98104.0,98103.0,0.71565023]
[1738728499468,0.0001068,98104.0,98103.0,1.06295023]
[1738728500164,0.0001068,98104.0,98103.0,1.08595023]
[1738728500366,0.0001068,98104.0,98103.0,1.18744495]
[1738728500604,0.0001068,98104.0,98103.0,1.18544495]
[1738728500908,0.0001068,98104.0,98103.0,1.18744495]
[1738728501498,0.0001068,98104.0,98103.0,1.19758607]
[1738728501723,0.0001068,98104.0,98103.0,1.17558607]
[1738728502240,0.0001068,98104.0,98103.0,1.07309135]
[1738728502448,0.0001068,98104.0,98103.0,0.91295023]
[1738728503145,0.0001068,98104.0,98103.0,0.91095023]
[1738728503346,0.0001068,98104.0,98103.0,0.90995023]
[1738728503550,0.0001068,98104.0,98103.0,0.91095023]
[1738728503750,0.0001068,98104.0,98103.0,1.01344495]
[1738728503899,0.0001068,98104.0,98103.0,1.01444495]
[1738728504345,0.0754068,98104.0,98103.0,0.46126517]
[1738728504545,0.0754068,98104.0,98103.0,0.46226517]
[1738728504923,0.0754068,98104.0,98103.0,0.46126517]
[1738728505129,0.0754068,98104.0,98103.0,0.46226517]
[1738728505679,0.0754068,98104.0,98103.0,0.46126517]
[1738728506106,0.0754068,98104.0,98103.0,0.46226517]
[1738728506316,0.0754068,98104.0,98103.0,0.46126517]
[1738728506694,0.0754068,98104.0,98103.0,0.46226517]
[1738728507295,0.0001068,98104.0,98103.0,0.54111149]
[1738728507499,0.0001068,98104.0,98103.0,0.64349655]
[1738728508720,0.0001068,98104.0,98103.0,0.64249655]
[1738728509144,0.0001068,98104.0,98103.0,0.64349655]
[1738728509345,0.0001068,98104.0,98103.0,0.64249655]
[1738728509691,0.0001068,98104.0,98103.0,0.64349655]
[1738728513994,4.189e-05,98104.0,98103.0,0.64349655]
[1738728525803,0.07784189,98104.0,98103.0,0.46226517]
[1738728526770,0.07784189,98104.0,98103.0,0.46126517]
[1738728527177,0.07784189,98104.0,98103.0,0.46226517]
[1738728527344,0.09691643,98104.0,98103.0,0.46226517]
[1738728527698,0.09691643,98104.0,98103.0,0.46126517]
[1738728527936,0.09691643,98104.0,98103.0,0.46226517]
[1738728528339,0.09691643,98104.0,98103.0,0.46126517]
[1738728528688,0.09691643,98104.0,98103.0,0.46226517]
[1738728529455,0.09691643,98104.0,98103.0,0.46126517]
[1738728529830,0.09691643,98104.0,98103.0,0.46226517]
[1738728530038,0.01911643,98104.0,98103.0,0.56475989]
[1738728531152,4.189e-05,98104.0,98103.0,0.56475989]
[1738728533122,0.01913288,98104.0,98103.0,0.56475989]
[1738728533420,0.01913288,98104.0,98103.0,0.46226517]
[1738728536871,0.04968013,98104.0,98103.0,0.46226517]
[1738728537147,0.12868013,98104.0,98103.0,0.33994517]
[1738728537426,0.17768013,98104.0,98103.0,0.33994517]
[1738728537723,0.17768013,98104.0,98103.0,0.46226517]
[1738728537988,0.17768013,98104.0,98103.0,0.46026517]
[1738728538165,0.17768013,98104.0,98103.0,0.46048945]
[1738728538303,0.17768013,98104.0,98103.0,0.46248945]
[1738728538518,0.17768013,98104.0,98103.0,0.34016945]
[1738728538723,0.17768013,98104.0,98103.0,0.46248945]
[1738728539609,0.17768013,98104.0,98103.0,0.33916945]